[Event "Polish Youth Ekstraliga 2022"]
[Site "Lublin"]
[Date "2022.07.03"]
[Round "9.1"]
[White "Budzisz, Adrian"]
[Black "Czopor, Maciej"]
[Result "0-1"]
[ECO "C54"]
[WhiteElo "2152"]
[BlackElo "2425"]
[Annotator "TA"]
[PlyCount "122"]
[EventDate "2022.06.24"]
[EventType "team-tourn"]
[EventCountry "POL"]
[SourceTitle "playchess.com"]
[Source "ChessBase"]
[SourceQuality "1"]
[TimeControl "40/5400+30:1800+30"]

{[%evp 13,122,37,50,0,0,-1,0,-10,-10,-23,-20,-89,13,15,9,0,0,-10,-17,-37,-21,-22,-35,-104,-101,-144,-143,-210,-185,-616,-181,-168,-116,-135,-56,-67,-74,-63,-60,-75,-66,-68,-61,-63,-12,-8,-18,-23,0,-35,0,-120,-63,-57,-37,-94,-52,-97,-106,-96,-35,-74,-74,-245,-250,-240,-243,-234,-249,-249,-244,-227,-237,-218,-210,-451,-444,-413,-431,-436,-416,-417,-412,-409,-405,-398,-314,-398,-304,-304,-289,-1001,-974,-5760,-3799,-1686,-1672,-1650,-1497,-29967,-29968,-29971,-29972,-29968,-29968,-29964,-29965,-29970,-29970,-11016,-10841]} 1. e4 {[%emt 0:00:03]} e5 {[%emt 0:00:19]} 2. Nf3 {[%emt 0:00:25]} Nc6 {[%emt 0:00:03]} 3. Bc4 {[%emt 0:00:55]} Bc5 {[%emt 0:00:09]} 4. c3 {[%emt 0:00:07]} Nf6 {[%emt 0:00:09]} 5. d3 {[%emt 0:00:12]} O-O {[%emt 0:00:27]} 6. O-O {[%emt 0:00:14]} d5 {[%emt 0:00:29]} 7. exd5 {[%emt 0:00:22]} Nxd5 {[%emt 0:00:04]} 8. h3 {[%emt 0:00:38] C54: Giuoco Piano: 4 c3 Nf6, main lines with 5 d4 and 5 d3.} ({Better is} 8. Re1 $14) 8... Nb6 $11 {[%emt 0:09:45]} 9. Bb3 {[%emt 0:01:17] 9.Bb3 scores better than 9.Bb5.} Bf5 {[%emt 0:00:37]} 10. Bc2 {[%emt 0:00:33] The position is equal.} Re8 {[%emt 0:03:53]} 11. Re1 {[%emt 0:01:39]} a5 {[%emt 0:05:10] [#]} 12. Nbd2 $146 {[%emt 0:04:16]} (12. Bg5 $11 Qd7 13. Nh4) ({Predecessor:} 12. Be3 Bxe3 13. fxe3 e4 14. Nd4 Nxd4 15. exd4 exd3 16. Bb3 Qg5 17. Rxe8+ Rxe8 18. Qd2 Qg3 19. Kf1 Re2 20. Qxe2 dxe2+ 21. Kxe2 Qxg2+ 22. Ke3 Qxb2 {0-1 (22) Casado Torres,D (1607)-Macias Pino,D (2115) Salobrena 2020}) 12... h6 {[%emt 0:06:29] 0x0.001b6a52f97adp-1022s more active pieces.} (12... Bxd3 $17 13. Nb3 Bxc2 14. Qxc2 Bd6) 13. Ne4 {[%emt 0:01:52]} Bf8 {[%emt 0:00:37]} 14. a4 {[%emt 0:00:48]} Bg6 {[%emt 0:02:55]} 15. Ng3 {[%emt 0:09:41]} f5 {[%emt 0:07:36]} 16. d4 {[%emt 0:05:15][%cal Rf3e5]} e4 {[%emt 0:01:05]} 17. d5 {[%emt 0:00:29]} Ne5 {[%emt 0:11:31]} (17... Qxd5 $2 18. Bb3 Qxb3 19. Qxb3+ $18) 18. Nd4 {[%emt 0:11:56]} (18. Nxe5 $1 $15 Rxe5 19. Bb3) 18... Qf6 $17 {[%emt 0:01:26]} (18... Qxd5 19. Bb3 Nbc4 20. Ndxf5 (20. Ngxf5 Kh8 $11) 20... Qxd1 21. Rxd1 $11) (18... Nxd5 $6 19. Ndxf5 Nf6 20. Bf4 $11 (20. Nxe4 $2 Bxf5 21. Bf4 Nxe4 $19)) 19. Nb5 {[%emt 0:09:00]} Rac8 {[%emt 0:05:11]} 20. Bb3 {[%emt 0:10:41]} (20. Be3 $17 {is a better defense.}) 20... Kh8 {[%emt 0:04:53]} 21. Nh5 $2 {[%emt 0:03:11] [#]} (21. Qd4) 21... Bxh5 $2 {[%emt 0:03:51]} (21... Nf3+ $1 {[%mdl 512]} 22. gxf3 Bxh5) 22. Qxh5 $19 {[%emt 0:00:07][%cal Ob5c7]} g6 {[%emt 0:04:04]} (22... Nd3 $19 23. Rf1 Re5) 23. Qe2 $17 {[%emt 0:00:19]} Nd3 {[%emt 0:06:55]} (23... c6 $1 $17 {[%cal Rc6b5]} 24. dxc6 bxc6) 24. Be3 $1 $15 {[%emt 0:00:56] Strongly threatening Bd4.} Kh7 {[%emt 0:02:19]} (24... Nxe1 25. Bd4 Re5 26. Rxe1 $18) 25. Red1 {[%emt 0:02:42]} Nd7 {[%emt 0:01:50] Pair of Knights!} 26. Bd4 {[%emt 0:01:00]} Qg5 {[%emt 0:00:59] Hoping for ...Nf4.} 27. Rxd3 {[%emt 0:03:53]} exd3 {[%emt 0:00:40]} 28. Qxd3 {[%emt 0:00:05]} Ne5 {[%emt 0:03:06] Against Qc4} (28... Bc5 $15) 29. Bxe5 $11 {[%emt 0:01:00]} Rxe5 {[%emt 0:00:04]} 30. Nd4 $1 {[%emt 0:00:05]} Qd8 {[%emt 0:08:41]} (30... Qe7 $5 {[%cal Re5e1]}) 31. Qf3 {[%emt 0:02:41]} Bd6 {[%emt 0:00:43]} 32. g4 {[%emt 0:06:43]} (32. g3 $11 {keeps the balance.}) 32... Qf6 {[%emt 0:03:59]} (32... Qe7 $1 $17 33. Rf1 fxg4 34. hxg4 Qh4) 33. Bc2 $15 {[%emt 0:04:35][%cal Rg4f5]} Rf8 {[%emt 0:00:04] aiming for ...fxg4.} (33... Kh8 $5 {[%cal Rf6g5]}) 34. gxf5 {[%emt 0:00:18]} ({White should try} 34. Ne6 $15) 34... gxf5 $17 {[%emt 0:00:17]} 35. Kh1 {[%emt 0:00:30]} Kh8 {[%emt 0:03:00]} 36. Rg1 {[%emt 0:00:50] [#]} Qf7 {[%emt 0:00:19]} (36... Rg8 $1 $17 {[%cal Rg8g1] White must now prevent ...Rxg1+.} 37. Rxg8+ (37. Nxf5 Rxg1+ 38. Kxg1 Qg5+ 39. Kf1 Qc1+ 40. Bd1 Rxf5 $19) 37... Kxg8 38. Nxf5 Re1+ 39. Kg2 Qg6+ 40. Qg4 Qxg4+ 41. hxg4 Re2) 37. c4 {[%emt 0:03:40]} Rg8 $36 {[%emt 0:00:09][%mdl 2048] Black is in control.} 38. Nxf5 $2 {[%emt 0:03:10] Loses the game.} (38. Rf1 $17) 38... Rxg1+ $19 {[%emt 0:00:42]} 39. Kxg1 {[%emt 0:00:04]} Re1+ {[%emt 0:00:57]} 40. Kg2 {[%emt 0:00:00] [#]} Qg6+ $1 {[%emt 0:00:00]} 41. Qg4 {[%emt 0:00:33]} Qxg4+ {[%emt 0:01:55]} 42. hxg4 {[%emt 0:00:06][%mdl 4096] Endgame KRB-KBN} Re2 {[%emt 0:02:20]} 43. Bd3 {[%emt 0:02:41]} Rd2 {[%emt 0:02:51]} 44. Nxd6 $2 {[%emt 0:01:11]} (44. Be4) 44... cxd6 {[%emt 0:00:08] KR-KB} 45. Bf5 {[%emt 0:00:20]} Rxb2 {[%emt 0:10:35]} 46. Bd7 {[%emt 0:01:30]} Rc2 {[%emt 0:00:13]} 47. Bb5 {[%emt 0:00:26]} Rc3 {[%emt 0:00:43]} 48. f3 {[%emt 0:00:12]} Kg7 {[%emt 0:00:04]} 49. Kf2 {[%emt 0:12:29]} Kf6 {[%emt 0:07:08] ...Ke5 is the strong threat.} 50. f4 {[%emt 0:00:11]} h5 {[%emt 0:02:33]} 51. gxh5 {[%emt 0:00:15]} Kf5 {[%emt 0:02:13]} 52. Bd7+ $2 {[%emt 0:17:03]} (52. c5 Rxc5 53. Ke3) 52... Kxf4 {[%emt 0:00:17]} 53. h6 {[%emt 0:00:10]} Rc2+ {[%emt 0:00:29]} 54. Kg1 {[%emt 0:00:20]} Kg3 {[%emt 0:00:27][%cal Rc2c1]} 55. Kf1 {[%emt 0:00:49]} Rh2 {[%emt 0:00:18] ( -> ...b6)} 56. Bc8 {[%emt 0:01:33]} b6 {[%emt 0:00:45]} 57. h7 {[%emt 0:02:31]} Kf3 {[%emt 0:01:21][%cal Rh2h1]} 58. Ke1 {[%emt 0:00:04]} Ke3 {[%emt 0:00:30][%cal Rh2h1]} 59. Kd1 {[%emt 0:00:04]} Rxh7 {[%emt 0:00:09]} 60. Kc2 {[%emt 0:00:25]} Kd4 {[%emt 0:00:05]} 61. Kb3 {[%emt 0:00:36]} Rg7 {[%emt 0:01:02] Weighted Error Value: White=0.66/Black=0.26 (precise)} 0-1

[Event "Polish Youth Ekstraliga 2022"]
[Site "Lublin"]
[Date "2022.07.03"]
[Round "9.2"]
[White "Luberanski, Jakub"]
[Black "Backiel, Hubert"]
[Result "0-1"]
[ECO "B90"]
[WhiteElo "2241"]
[BlackElo "2045"]
[Annotator "TA"]
[PlyCount "138"]
[EventDate "2022.06.24"]
[EventType "team-tourn"]
[EventCountry "POL"]
[SourceTitle "playchess.com"]
[Source "ChessBase"]
[SourceQuality "1"]
[TimeControl "40/5400+30:1800+30"]

{[%evp 12,137,22,14,42,42,51,33,41,23,47,46,65,63,63,10,33,16,22,-8,33,0,0,0,0,0,0,0,0,0,19,0,0,0,0,0,0,3,44,34,37,37,39,2,2,7,0,12,77,83,80,71,69,64,63,77,67,0,220,223,222,209,275,122,103,0,0,0,0,-10,0,0,0,-36,0,0,0,0,0,0,0,-8,-8,-47,-56,-62,-12,-29,-32,-14,-20,-31,0,0,0,-8,0,0,0,0,7,-118,-68,-63,0,0,0,0,0,0,0,-499,-441,-400,0,-830,-829,-29960,-29959,-29944,-12832,-29996,-29997,-29997,-29998,-29998,-29999,-29999]} 1. e4 {[%emt 0:00:02]} c5 {[%emt 0:00:07]} 2. Nf3 {[%emt 0:00:02]} d6 {[%emt 0:00:11]} 3. d4 {[%emt 0:00:05]} cxd4 {[%emt 0:00:04]} 4. Nxd4 {[%emt 0:00:02]} Nf6 {[%emt 0:00:08]} 5. Nc3 {[%emt 0:00:03]} a6 {[%emt 0:00:10]} 6. h3 {[%emt 0:00:05]} e6 {[%emt 0:00:25]} 7. g4 {[%emt 0:00:05][%cal Bg2g4,Bg4g5][%mdl 32]} Be7 {[%emt 0:01:21] B81: Sicilian Scheveningen: Keres Attack.} 8. g5 {[%emt 0:00:44]} Nfd7 {[%emt 0:00:23]} 9. Be3 {[%emt 0:00:04]} Nc6 {[%emt 0:06:12] White is slightly better.} (9... Bxg5 10. Nxe6 $1 fxe6 11. Qh5+ g6 12. Qxg5 $16) 10. h4 {[%emt 0:02:24]} O-O {[%emt 0:08:53]} 11. Be2 {[%emt 0:07:11]} Nxd4 {[%emt 0:08:33]} 12. Qxd4 {[%emt 0:00:33]} b5 {[%emt 0:00:27][%cal Ob5b4]} 13. a3 {[%emt 0:11:38] [#]} (13. O-O-O $14) 13... Bb7 $146 {[%emt 0:02:09]} ({Predecessor:} 13... Ne5 14. O-O-O Qa5 15. Qb6 Qxb6 16. Bxb6 f6 17. f4 Ng6 18. Bc7 Nxf4 19. Bxd6 Nxe2+ 20. Nxe2 {0-1 (50) Petrarca,G-Bruno,E (1823) Buenos Aires 1992}) 14. Rg1 {[%emt 0:02:24]} Nc5 {[%emt 0:18:59]} 15. f3 {[%emt 0:04:45]} Rc8 {[%emt 0:03:57]} 16. O-O-O {[%emt 0:12:41]} Qc7 {[%emt 0:05:26][%cal Oc5a4]} 17. Qd2 $1 {[%emt 0:07:03]} d5 {[%emt 0:05:05]} 18. exd5 {[%emt 0:00:43]} Rfd8 {[%emt 0:02:13]} 19. Kb1 {[%emt 0:00:46]} exd5 {[%emt 0:13:40][%cal Od5d4] ...d4! is the strong threat.} 20. Bf4 {[%emt 0:02:53]} Qb6 {[%emt 0:03:13]} 21. Qe3 {[%emt 0:08:09]} Qe6 {[%emt 0:01:31]} 22. Qxe6 {[%emt 0:07:09]} Nxe6 {[%emt 0:00:19]} 23. Be5 {[%emt 0:00:23]} Bc5 {[%emt 0:05:30]} 24. Rgf1 {[%emt 0:02:37]} Bd6 {[%emt 0:04:49]} 25. Bxd6 {[%emt 0:00:54]} Rxd6 {[%emt 0:00:02]} 26. f4 {[%emt 0:02:11][%cal Bf3f4,Bf4f5][%mdl 32]} d4 {[%emt 0:02:13]} 27. f5 {[%emt 0:05:24]} (27. Bf3 $5 {[%cal Rf3b7]} Rcd8 28. Bxb7 dxc3 29. Rxd6 Rxd6 30. b4 $14) 27... Nc5 {[%emt 0:00:32]} 28. Bf3 {[%emt 0:01:43]} Bxf3 {[%emt 0:01:35]} 29. Rxf3 {[%emt 0:00:03]} Kf8 {[%emt 0:03:00]} (29... Re8 $11) 30. b4 $1 $36 {[%emt 0:03:21][%mdl 2048] White is in control.} Nb7 31. Ne2 {[%emt 0:00:54]} Re8 {[%emt 0:01:55]} 32. Nxd4 {[%emt 0:08:16]} Re4 {[%emt 0:00:00][%csl LRd4,LRh4] Inhibits Rf4.} 33. Rfd3 {[%emt 0:00:55]} Rxh4 {[%emt 0:02:06] [#]} 34. a4 {[%emt 0:03:12]} ({White should try} 34. Nxb5 $1 $14 Rxd3 35. Rxd3) 34... Ke7 $2 {[%emt 0:01:23]} (34... Rg4 $1 $11 {and Black stays safe.}) 35. f6+ $18 {[%emt 0:00:21]} Kf8 {[%emt 0:00:21]} 36. axb5 {[%emt 0:00:43]} gxf6 {[%emt 0:00:24]} 37. bxa6 {[%emt 0:00:16]} (37. c4 $1 $18 {[%cal Rc4c5]} axb5 38. c5) 37... Rxa6 $16 {[%emt 0:00:12]} 38. c3 {[%emt 0:01:03]} (38. b5 $16 Rd6 39. gxf6) 38... fxg5 $11 {[%emt 0:00:59]} 39. Nf5 {[%emt 0:00:11] Intending Rd8+ and mate.} Re4 {[%emt 0:00:06]} 40. Rd7 {[%emt 0:00:00]} Rb6 {[%emt 0:00:00]} 41. Rf1 {[%emt 0:12:36]} Re2 {[%emt 0:20:36]} 42. Rh1 {[%emt 0:06:08]} Rf6 {[%emt 0:04:01]} (42... Rf2 $5 {[%cal Rf2f5]} 43. Ne3 Nc5 44. Rd8+ Kg7 $15) 43. Nd4 {[%emt 0:01:10]} Re7 {[%emt 0:01:18]} 44. Rd5 {[%emt 0:00:09]} h6 {[%emt 0:00:44]} 45. Nf5 {[%emt 0:01:29] Against Nd6} Ree6 {[%emt 0:00:53]} 46. Kc2 {[%emt 0:01:56]} Nd6 {[%emt 0:00:40]} 47. Nd4 {[%emt 0:03:03]} Re3 {[%emt 0:00:01]} 48. Ra1 {[%emt 0:00:56]} Kg8 {[%emt 0:01:27]} (48... g4 $15 49. Ra6 Ne8 50. Rxf6 Nxf6 51. Rd8+ Re8 52. Rxe8+ (52. Rd6 $2 g3 $19) 52... Kxe8) 49. Ra6 $1 {[%emt 0:02:05]} Rf2+ {[%emt 0:00:54]} 50. Kb3 {[%emt 0:00:07]} Ne4 {[%emt 0:00:25]} 51. Rc6 {[%emt 0:00:14]} Nd2+ {[%emt 0:02:15]} (51... g4 $5 {[%cal Rg4g3]} 52. Nf5 Rxf5 $1 53. Rxf5 g3 54. Rc8+ Kg7 $11) 52. Ka4 {[%emt 0:00:07]} Ne4 {[%emt 0:00:31]} 53. Kb3 {[%emt 0:01:46]} Nd2+ {[%emt 0:00:52]} 54. Ka4 Nb1 {[%emt 0:01:28]} 55. Rdc5 {[%emt 0:00:48]} Rd3 {[%emt 0:00:42] aiming for ...g4.} 56. Nb5 {[%emt 0:03:04]} (56. Nf5 $1 $11 {remains equal.}) 56... Kg7 {[%emt 0:00:56] Black is more active.} (56... Kh7 $1 $17 {White must now prevent ...g4.} 57. Nd6 Rf6) 57. Nd6 $1 $15 {[%emt 0:00:24]} Rdf3 {[%emt 0:00:51]} (57... Ra2+ 58. Kb3 Rh2 59. Nf5+ Kh7 60. b5 $14) (57... g4 $1 $15 58. Nf5+ Rxf5 $1 59. Rxf5 Nxc3+ 60. Ka5 (60. Kb3 $2 Ne2+ 61. Ka2 Nd4 $19) 60... g3) 58. b5 $11 {[%emt 0:00:46] Strongly threatening b6.} g4 {[%emt 0:00:53]} 59. b6 {[%emt 0:01:44] And now b7 would win.} g3 {[%emt 0:00:18]} 60. b7 {[%emt 0:00:58]} g2 {[%emt 0:01:01]} 61. Ne8+ $2 {[%emt 0:00:36][%mdl 8192]} (61. b8=Q $1 $11 {and White is okay.} g1=Q 62. Ne8+ (62. Ne4 Nxc3+ 63. Rxc3 Ra2+ 64. Kb4 Qb1+ 65. Kc5 Qxb8 66. Rxf3 Qe5+ 67. Kb4 Qxe4+ 68. Rc4 Qxf3 69. Rd4 Rb2+ 70. Kc5 Qc3+ 71. Rc4 Qe5+ 72. Kc6 Qb5+ 73. Kd6 Qxc4 74. Ke5 Rd2 75. Kf5 Rd5#) 62... Kh7 63. Rxh6+ (63. Qe5 $2 Nxc3+ 64. Ka5 Ra2+ 65. Kb6 Qb1+ 66. Rb5 Qxb5+ 67. Qxb5 Nxb5 $19) 63... Kxh6 64. Qd6+ Kh7 65. Rh5+ Kg8 66. Nf6+ Kg7 67. Ne8+ Kg8 68. Nf6+ Kg7 69. Ne8+ Kg8) 61... Kh7 $1 $19 {[%emt 0:00:16]} 62. b8=Q {[%emt 0:05:00][%cal Oc6h6] [#] White wants to mate with Rxh6+!} g1=Q $2 {[%emt 0:00:24]} ({Black should play} 62... Nxc3+ $1 $19 {[%mdl 512]} 63. Rxc3 g1=Q) 63. Qd6 $4 {[%emt 0:01:31][%mdl 8192] [#]} ({Avoid the trap} 63. Qe5 $2 {[#]} Nxc3+ $1 {[%mdl 512]} 64. Ka5 (64. Rxc3 $2 Ra2+ 65. Kb5 Qb1+ 66. Kc4 Ra4+ 67. Kd5 Rd3+ 68. Rxd3 Qxd3+ 69. Kc5 Ra5+ 70. Kb6 Rxe5 $19) 64... Ra2+ 65. Kb6 Qb1+ 66. Rb5 Qxb5+ 67. Qxb5 Nxb5 $19) (63. Rxh6+ $11 Kxh6 64. Qd6+ Kh7 65. Rh5+ Kg8 66. Nf6+ Kg7 67. Ne8+ Kg8 68. Nf6+ Kg7 69. Ne8+ Kg8) 63... Nxc3+ $1 {[%emt 0:00:29][%mdl 512]} 64. Rxc3 {[%emt 0:00:20]} (64. Ka5 Ra2+) 64... Ra2+ {[%emt 0:01:00]} 65. Kb5 {[%emt 0:00:44]} Qb1+ {[%emt 0:00:21]} 66. Kc4 {[%emt 0:00:39]} Ra4+ {[%emt 0:00:29] Black mates.} 67. Kd5 {[%emt 0:00:18]} Qe4+ {[%emt 0:00:07]} 68. Kc5 {[%emt 0:00:09]} Qb4+ {[%emt 0:00:02]} 69. Kd5 {[%emt 0:00:16]} Qd4# {[%emt 0:00:42] Quite a comeback for Black.  Weighted Error Value: White=0.16 (very precise) /Black=0.18 (very precise)} 0-1

[Event "Polish Youth Ekstraliga 2022"]
[Site "Lublin"]
[Date "2022.07.03"]
[Round "9.3"]
[White "Ptaszynski, Szymon"]
[Black "Jaworski, Tymon"]
[Result "1-0"]
[ECO "C54"]
[WhiteElo "1781"]
[BlackElo "1628"]
[Annotator "NA RC"]
[PlyCount "83"]
[EventDate "2022.06.24"]
[EventType "team-tourn"]
[EventCountry "POL"]
[SourceTitle "playchess.com"]
[Source "ChessBase"]
[SourceQuality "1"]
[TimeControl "40/5400+30:1800+30"]

1. e4 {[%emt 0:00:03]} e5 {[%emt 0:00:02]} 2. Nf3 {[%emt 0:00:04]} Nc6 {[%emt 0:00:04]} 3. Bc4 {[%emt 0:00:03]} Bc5 {[%emt 0:00:18]} 4. c3 {[%emt 0:00:06]} Nf6 {[%emt 0:00:10]} 5. d4 {[%emt 0:00:05]} exd4 {[%emt 0:00:07]} 6. e5 {[%emt 0:00:02]} d5 {[%emt 0:00:28]} 7. Bb5 {[%emt 0:00:04]} Ne4 {[%emt 0:00:14]} 8. cxd4 {[%emt 0:00:02]} Bb6 {[%emt 0:00:13]} 9. Nc3 {[%emt 0:00:07]} O-O {[%emt 0:00:48]} 10. Be3 {[%emt 0:00:02]} f6 {[%emt 0:02:40]} 11. exf6 {[%emt 0:03:01]} Nxf6 {[%emt 0:01:09]} 12. Bxc6 {[%emt 0:03:55]} bxc6 {[%emt 0:00:22]} 13. Ne5 {[%emt 0:00:13]} Qd6 {[%emt 0:06:41]} 14. O-O {[%emt 0:06:47]} Ba6 {[%emt 0:08:02]} 15. Re1 {[%emt 0:01:22]} Rae8 {[%emt 0:04:15]} 16. Rc1 {[%emt 0:14:33]} Nd7 {[%emt 0:08:30]} 17. Nxd7 {[%emt 0:21:52]} Qxd7 {[%emt 0:00:03]} 18. Qa4 {[%emt 0:00:10]} Bb5 {[%emt 0:02:20]} 19. Qc2 {[%emt 0:02:48]} a5 {[%emt 0:04:18]} 20. a4 {[%emt 0:01:26]} Ba6 {[%emt 0:00:29]} 21. Ne2 {[%emt 0:04:51]} Rf6 {[%emt 0:04:52]} 22. Ng3 {[%emt 0:02:31]} Rfe6 {[%emt 0:01:10]} 23. Qd2 {[%emt 0:00:50]} Qe7 {[%emt 0:07:45]} 24. Red1 {[%emt 0:05:37]} Bc4 {[%emt 0:04:03]} 25. Rc3 {[%emt 0:08:01]} c5 {[%emt 0:22:02]} 26. dxc5 {[%emt 0:08:31]} Bxc5 {[%emt 0:00:41]} 27. Nf5 {[%emt 0:00:57]} Qf8 {[%emt 0:04:04]} 28. Bxc5 {[%emt 0:02:10]} Qxc5 {[%emt 0:00:27]} 29. Ne3 {[%emt 0:00:09]} Qb4 {[%emt 0:08:27]} 30. h3 {[%emt 0:07:27]} c6 {[%emt 0:07:39]} 31. Qc2 {[%emt 0:05:36]} Be2 {[%emt 0:02:13]} 32. Qxe2 {[%emt 0:00:29]} d4 {[%emt 0:00:11]} 33. Rc4 {[%emt 0:00:21]} Qxc4 {[%emt 0:00:51]} 34. Qxc4 {[%emt 0:00:06]} dxe3 {[%emt 0:00:07]} 35. fxe3 {[%emt 0:00:03]} Kh8 {[%emt 0:00:10]} 36. Rd7 {[%emt 0:00:36]} Rxe3 {[%emt 0:00:16]} 37. Qxc6 {[%emt 0:00:09]} h6 {[%emt 0:00:12]} 38. Qg6 {[%emt 0:00:26]} Rg8 {[%emt 0:00:11]} 39. Rxg7 {[%emt 0:01:16]} Re1+ {[%emt 0:00:33]} 40. Kf2 {[%emt 0:00:00]} Rxg7 {[%emt 0:00:00]} 41. Qxh6+ {[%emt 0:00:10]} Rh7 {[%emt 0:01:07]} 42. Qf8# {[%emt 0:00:08]} 1-0

[Event "Polish Youth Ekstraliga 2022"]
[Site "Lublin"]
[Date "2022.07.03"]
[Round "9.4"]
[White "Ochedzan, Filip"]
[Black "Rekuc, Patryk"]
[Result "0-1"]
[ECO "B94"]
[WhiteElo "1873"]
[BlackElo "1842"]
[Annotator "NA RC"]
[PlyCount "64"]
[EventDate "2022.06.24"]
[EventType "team-tourn"]
[EventCountry "POL"]
[SourceTitle "playchess.com"]
[Source "ChessBase"]
[SourceQuality "1"]
[TimeControl "40/5400+30:1800+30"]

1. e4 {[%emt 0:00:05]} c5 {[%emt 0:00:04]} 2. Nf3 {[%emt 0:00:05]} d6 {[%emt 0:00:05]} 3. d4 {[%emt 0:00:11]} cxd4 {[%emt 0:00:04]} 4. Nxd4 {[%emt 0:00:05]} Nf6 {[%emt 0:00:05]} 5. Nc3 {[%emt 0:00:12]} a6 {[%emt 0:00:06]} 6. Bg5 {[%emt 0:00:20]} Nbd7 {[%emt 0:00:05]} 7. f4 {[%emt 0:07:48]} Qc7 {[%emt 0:00:06]} 8. Qf3 {[%emt 0:01:47]} b5 {[%emt 0:00:10]} 9. O-O-O {[%emt 0:02:05]} Bb7 {[%emt 0:00:11]} 10. Bd3 g6 {[%emt 0:14:15]} 11. Bxf6 {[%emt 0:12:45]} Nxf6 {[%emt 0:00:24]} 12. g4 {[%emt 0:01:54]} Bg7 {[%emt 0:02:05]} 13. Nce2 {[%emt 0:05:42]} Nd7 {[%emt 0:09:16]} 14. g5 {[%emt 0:04:02]} Qb6 {[%emt 0:00:15]} 15. Nb3 {[%emt 0:03:41]} a5 {[%emt 0:00:28]} 16. Rhf1 {[%emt 0:02:50]} a4 {[%emt 0:01:07]} 17. Nd2 {[%emt 0:01:17]} b4 {[%emt 0:05:35]} 18. Nc4 {[%emt 0:07:33]} Qc7 {[%emt 0:00:30]} 19. Kb1 {[%emt 0:05:28]} O-O {[%emt 0:07:49]} 20. Rd2 {[%emt 0:06:26]} e6 {[%emt 0:04:22]} 21. b3 {[%emt 0:06:08]} Nc5 {[%emt 0:03:55]} 22. h4 {[%emt 0:11:17]} axb3 {[%emt 0:08:38]} 23. cxb3 {[%emt 0:00:21]} d5 {[%emt 0:16:07]} 24. exd5 {[%emt 0:00:45]} exd5 {[%emt 0:00:31]} 25. Nb2 Qa5 {[%emt 0:00:52]} 26. Na4 {[%emt 0:03:59]} Nxa4 {[%emt 0:00:11]} 27. bxa4 {[%emt 0:00:08]} b3 {[%emt 0:00:12]} 28. axb3 {[%emt 0:02:25]} Qxd2 {[%emt 0:00:08]} 29. Bc2 {[%emt 0:00:16]} Ba6 {[%emt 0:00:10]} 30. Rf2 {[%emt 0:00:09]} Rac8 {[%emt 0:00:29]} 31. Nc1 {[%emt 0:00:27]} Qd4 {[%emt 0:00:08]} 32. Ne2 {[%emt 0:00:37]} Qb2# {[%emt 0:00:07]} 0-1

[Event "Polish Youth Ekstraliga 2022"]
[Site "Lublin"]
[Date "2022.07.03"]
[Round "9.5"]
[White "Marcinczyk, Monika"]
[Black "Lochina, Justyna"]
[Result "1/2-1/2"]
[ECO "B45"]
[WhiteElo "1991"]
[BlackElo "1672"]
[Annotator "RC"]
[PlyCount "131"]
[EventDate "2022.06.24"]
[EventType "team-tourn"]
[EventCountry "POL"]
[SourceTitle "playchess.com"]
[Source "ChessBase"]
[SourceQuality "1"]
[TimeControl "40/5400+30:1800+30"]

1. e4 {[%emt 0:00:29]} c5 {[%emt 0:00:05]} 2. Nf3 {[%emt 0:00:05]} e6 {[%emt 0:00:05]} 3. d4 {[%emt 0:00:05]} cxd4 {[%emt 0:00:05]} 4. Nxd4 {[%emt 0:00:04]} Nc6 {[%emt 0:00:22]} 5. Nc3 {[%emt 0:00:08]} d6 {[%emt 0:00:31]} 6. g4 {[%emt 0:00:19]} Nge7 {[%emt 0:01:13]} 7. Be3 {[%emt 0:00:29]} a6 {[%emt 0:07:31]} 8. Nb3 {[%emt 0:05:18]} Qc7 {[%emt 0:06:15]} 9. Qe2 {[%emt 0:02:05]} Na5 {[%emt 0:04:02]} 10. O-O-O {[%emt 0:04:57]} Nec6 {[%emt 0:03:14]} 11. Kb1 {[%emt 0:06:05]} b5 {[%emt 0:02:27]} 12. f4 {[%emt 0:01:19]} Nc4 {[%emt 0:04:58]} 13. Bc1 {[%emt 0:04:53]} N6a5 {[%emt 0:06:05]} 14. e5 {[%emt 0:12:53]} Bb7 {[%emt 0:16:33]} 15. Bg2 {[%emt 0:05:29]} O-O-O {[%emt 0:12:44]} 16. Bxb7+ {[%emt 0:06:58]} Kxb7 {[%emt 0:03:47]} 17. Nd4 {[%emt 0:13:31]} d5 {[%emt 0:06:27]} 18. f5 {[%emt 0:01:03]} Bc5 {[%emt 0:06:13]} 19. fxe6 {[%emt 0:02:36]} Bxd4 {[%emt 0:00:25]} 20. e7 {[%emt 0:00:45]} Qxe7 {[%emt 0:03:57]} 21. Rxd4 {[%emt 0:00:16]} Qxe5 {[%emt 0:06:02]} 22. Qf2 {[%emt 0:01:01]} Rhe8 {[%emt 0:03:01]} 23. Rhd1 {[%emt 0:03:45]} Nc6 {[%emt 0:03:48]} 24. Rxd5 {[%emt 0:00:09]} Rxd5 {[%emt 0:00:32]} 25. Qxf7+ {[%emt 0:07:28]} Re7 {[%emt 0:00:18]} 26. Qxd5 {[%emt 0:00:06]} Qxd5 {[%emt 0:00:18]} 27. Rxd5 {[%emt 0:00:46]} N6e5 {[%emt 0:01:22]} 28. h3 {[%emt 0:01:47]} Kc6 {[%emt 0:00:20]} 29. a3 {[%emt 0:04:24]} Nf3 {[%emt 0:00:50]} 30. b3 {[%emt 0:00:13]} Nb6 {[%emt 0:01:20]} 31. Rf5 {[%emt 0:00:40]} Nd4 {[%emt 0:00:29]} 32. Rf4 {[%emt 0:01:44]} Ne6 {[%emt 0:00:28]} 33. Re4 {[%emt 0:00:19]} Nd5 {[%emt 0:00:30]} 34. Ne2 {[%emt 0:01:17]} Kd7 {[%emt 0:00:38]} 35. Kb2 {[%emt 0:03:43]} Nc5 {[%emt 0:00:31]} 36. Rd4 {[%emt 0:02:44]} Rxe2 {[%emt 0:00:19]} 37. Rxd5+ {[%emt 0:00:04]} Kc6 {[%emt 0:00:09]} 38. Rd8 {[%emt 0:00:21]} Rh2 {[%emt 0:00:53]} 39. Rd6+ {[%emt 0:04:08]} Kxd6 {[%emt 0:00:17]} 40. Bf4+ {[%emt 0:00:00]} Kd5 {[%emt 0:00:00]} 41. Bxh2 {[%emt 0:00:10]} g5 {[%emt 0:19:32]} 42. Kc3 {[%emt 0:21:17]} Ne4+ {[%emt 0:03:09]} 43. Kd3 {[%emt 0:00:52]} Nf2+ {[%emt 0:02:42]} 44. Ke3 {[%emt 0:00:25]} Nxh3 {[%emt 0:00:49]} 45. c3 {[%emt 0:00:36]} a5 {[%emt 0:01:06]} 46. Bg3 {[%emt 0:10:42]} a4 {[%emt 0:02:14]} 47. c4+ {[%emt 0:00:43]} bxc4 {[%emt 0:00:40]} 48. bxa4 {[%emt 0:00:04]} Nf4 {[%emt 0:02:27]} 49. Kd2 {[%emt 0:02:39]} Ne6 {[%emt 0:02:06]} 50. a5 {[%emt 0:01:01]} Nc5 {[%emt 0:00:18]} 51. Bc7 {[%emt 0:00:18]} Ne4+ {[%emt 0:00:51]} 52. Kc2 {[%emt 0:00:18]} Kc6 {[%emt 0:00:37]} 53. Bd8 {[%emt 0:01:06]} Kb7 {[%emt 0:00:40]} 54. Be7 {[%emt 0:01:59]} Ka6 {[%emt 0:00:10]} 55. Bb4 {[%emt 0:00:11]} Nf2 {[%emt 0:00:47]} 56. Kc3 {[%emt 0:00:27]} Nxg4 {[%emt 0:00:27]} 57. Kxc4 {[%emt 0:00:19]} Ne5+ {[%emt 0:00:46]} 58. Kd5 {[%emt 0:00:12]} Nd3 {[%emt 0:00:16]} 59. Bd2 {[%emt 0:00:26]} g4 {[%emt 0:00:29]} 60. Ke4 {[%emt 0:00:21]} Nc5+ {[%emt 0:00:33]} 61. Kf4 {[%emt 0:00:13]} h5 {[%emt 0:00:17]} 62. Bb4 {[%emt 0:00:35]} Nd3+ {[%emt 0:00:46]} 63. Kg3 {[%emt 0:00:06]} Ne5 {[%emt 0:00:36]} 64. Kh4 {[%emt 0:00:55]} Nc4 {[%emt 0:00:24]} 65. Be1 {[%emt 0:00:49]} Nxa5 {[%emt 0:00:28]} 66. Kxh5 {[%emt 0:00:11]} 1/2-1/2